Cogmind - Beta 9.3 @@@ ROGUE MODE // 2019.12.28 @ 11:50:25 Player: Horse Result: Destroyed by D-53 Grenadier with Mini Grenade Launcher Performance ------------- Evolutions (0) 0 Regions Visited (2) 400 Robots Destroyed (31) 155 Value Destroyed (551) 551 Prototype IDs (3) 60 Alien Tech Used (0) 0 Bonus (-62) -62 TOTAL SCORE: 1104 Bonus ------- Friendly Fire -62 Cogmind --------- Core Integrity 0/250 Matter 240/300 Energy 140/140 System Corruption 1% Temperature Cool (11) Movement Walking (120) Location -10/Mines Parts ------- > --- POWER (1) -------- Light Deuterium Engine > --- PROPULSION (2) --- Aluminum Leg Aluminum Leg > --- UTILITY (2) ------ Cryofiber Web Medium Storage Unit > --- WEAPON (2) ------- Electrolaser > --- INVENTORY (8) ---- Aluminum Leg Thermal Generator Medium Storage Unit Insulated Plating Hardlight Generator Improved Trap Extractor Rocket Launcher Peak State ------------ > --- POWER ------------ Light Deuterium Engine > --- PROPULSION ------- Aluminum Leg Aluminum Leg > --- UTILITY ---------- Cryofiber Web Medium Storage Unit > --- WEAPON ----------- Electrolaser Electrolaser > --- INVENTORY -------- Thermal Generator Medium Storage Unit Insulated Plating Hardlight Generator Improved Trap Extractor Rocket Launcher [Rating: 16] Favorites ----------- Power Light Ion Engine Engine Light Ion Engine Propulsion Aluminum Leg Leg Aluminum Leg Utility Medium Storage Unit Device Heat Shielding Storage Medium Storage Unit Weapon Medium Laser Energy Gun Medium Laser Launcher Rocket Launcher Build | -11 -10 -10 ------- Run | Scr Mat Min Slots Evolved . | . . . Power . | . . . Propulsion . | . . . Utility . | . . . Weapon . | . . . Parts Attached 31 | 6 11 14 Power 6 | 1 1 4 Engine 6 | 1 1 4 Core . | . . . Reactor . | . . . Propulsion 4 | 2 . 2 Treads . | . . . Leg 4 | 2 . 2 Wheel . | . . . Hover . | . . . Flight . | . . . Utility 5 | 1 3 1 Device 2 | . 1 1 Storage 3 | 1 2 . Processor . | . . . Hackware . | . . . Protection . | . . . Artifact . | . . . Weapon 16 | 2 7 7 Energy Gun 12 | 2 5 5 Energy Cannon . | . . . Ballistic Gun . | . . . Ballistic Cannon . | . . . Launcher 4 | . 2 2 Special Weapon . | . . . Impact Weapon . | . . . Slashing Weapon . | . . . Piercing Weapon . | . . . Special Melee Weapon . | . . . Unidentified Prototypes . | . . . Parts Lost 6 | . 5 1 Power . | . . . Propulsion 1 | . 1 . Utility 1 | . 1 . Weapon 4 | . 3 1 Highest Loss Streak 3 | . 3 1 Average Slot Usage (%) 96 | . 95 99 Engine 14 | . 14 14 Leg 28 | . 28 28 Device 1 | . 1 1 Storage 23 | . 22 26 Energy Gun 24 | . 25 22 Launcher 2 | . 1 4 Naked Turns . | . . . Heaviest Build 27 | 11 27 27 Greatest Support 20 | 20 20 20 Greatest Overweight (x) 2 | . 2 1 Average Overweight (x) . | . . . Largest Inventory Capacity 12 | 6 12 12 Average Capacity 10 | 5 9 11 Most Carried 7 | . 6 7 Average Carried 3 | . 2 5 Final Capacity 12 | 6 12 8 Final Carried 7 | . 6 7 Class Distribution -------------------- 100% | Mutant Dominant Class ---------------- Mutant | -10/Materials Mutant | -10/Mines Resources | -11 -10 -10 ----------- Run | Scr Mat Min Matter Collected 567 | 242 140 185 Remotely . | . . . Salvage Created 831 | 69 546 216 Parts 60 | 1 37 22 Haulers Intercepted 1 | . 1 . Recyclers Shooed . | . . . Parts Field Recycled . | . . . Retrieved Matter . | . . . Parts Self-Destructed . | . . . Prevented . | . . . Kills | -11 -10 -10 ------- Run | Scr Mat Min Combat Hostiles Destroyed 26 | . 13 13 Guns 17 | . 12 5 AOE 9 | . 1 8 Classes Destroyed 7 | 1 5 1 Builder 1 | . 1 . Hauler 1 | . 1 . Recycler 2 | 1 . 1 Watcher 1 | . 1 . Swarmer 12 | . 3 9 Grunt 10 | . 10 . Assembled 4 | . . 4 Best Kill Streak 7 | 1 7 4 Combat Bots Only 5 | . 5 4 Max Kills in Single Turn 3 | 1 2 3 Gunslinging 1 | . 1 1 Exploded 3 | . 1 3 Melee . | . . . Uniques/NPCs Destroyed . | . . . Combat | -11 -10 -10 -------- Run | Scr Mat Min Damage Taken 867 | . 385 482 Core 259 | . 85 174 Absorbed by Shields . | . . . Core Remaining (%) 100 | 100 . . Volleys Fired 67 | 4 42 21 Largest 2 | 2 2 2 Hottest 126 | 90 105 126 Shots Fired 117 | 8 77 32 Gun 105 | 8 75 22 Cannon . | . . . Launcher 12 | . 2 10 Special . | . . . Kinetic . | . . . Thermal 71 | 4 45 22 Explosive 12 | . 2 10 Electromagnetic 34 | 4 30 . Robot Hit Streak 13 | 3 13 4 Robot Miss Streak 6 | 2 5 6 Penetration Max . | . . . Secondary Targets 4 | . 2 2 Max Gunslinging Chain 1 | . 1 1 Shots Hit Robots 58 | 4 42 12 Core Hits 55 | 2 28 25 Critical Hits . | . . . Critical Kills . | . . . Critical Parts Destroyed . | . . . Melee Attacks . | . . . Impact . | . . . Slashing . | . . . Piercing . | . . . Sneak Attacks . | . . . Combat Hostiles . | . . . Follow-up Attacks . | . . . Damage Inflicted 1505 | 62 721 722 Guns 880 | 62 632 186 Cannons . | . . . Explosions 625 | . 89 536 Melee . | . . . Ramming . | . . . Kinetic . | . . . Thermal 613 | 50 377 186 Explosive 625 | . 89 536 Electromagnetic 267 | 12 255 . Impact . | . . . Slashing . | . . . Piercing . | . . . Highest Corruption 1 | . . 1 Average Corruption 1 | . . 1 Corruption Purged . | . . . Overload Shots . | . . . Overflow Damage . | . . . Projectiles . | . . . Explosions . | . . . Melee . | . . . Knockbacks . | . . . Impact . | . . . Kinetic . | . . . Secondary . | . . . Self-Inflicted Damage 75 | . . 75 Shots 3 | . . 3 Rammed . | . . . Targets Rammed . | . . . Kicked . | . . . Crushed . | . . . Highest Temperature 347 | 120 347 195 Average Temperature 89 | 62 98 66 Received Heat Transfer 83 | . 83 . Effects 3 | . 3 . Energy Bleed 1 | . 1 . Interference 2 | . 2 . Siege Activations . | . . . Robots Corrupted . | . . . Combat Hostiles . | . . . Parts Fried . | . . . Impact Corruptions . | . . . Robots Melted . | . . . Combat Hostiles . | . . . Parts Melted 2 | . . 2 Heat Transferred 1679 | 148 1050 481 Parts Sabotaged . | . . . Parts Stolen . | . . . Parts Stripped . | . . . Power Chain Reactions . | . . . Missiles Intercepted . | . . . Alert | -11 -10 -10 ------- Run | Scr Mat Min Peak Influence 351 | 5 351 323 Average Influence 198 | 2 210 196 Maximum Alert Level 1 | . 1 1 Low Security (%) 45 | 100 39 51 Level 1 54 | . 60 48 Level 2 . | . . . Level 3 . | . . . Level 4 . | . . . Level 5 . | . . . High Security . | . . . Max Security . | . . . Squads Dispatched 3 | . 3 . Investigation 2 | . 2 . Extermination . | . . . Reinforcement 1 | . 1 . Assault . | . . . Garrison . | . . . Intercept . | . . . Construction Impeded . | . . . Haulers Reinforced . | . . . Stealth | -11 -10 -10 --------- Run | Scr Mat Min Distress Signals 3 | . 3 . Communications Jammed . | . . . Distress Signals . | . . . Times Spotted 47 | . 27 20 Peak Tracking Total 4 | . 3 4 Tactical Retreats . | . . . Traps | -11 -10 -10 ------- Run | Scr Mat Min Traps Triggered 3 | . 2 1 Indirectly . | . . . Trap Hack Attempts . | . . . Triggered . | . . . Disarmed . | . . . Reprogrammed . | . . . Reused . | . . . Traps Extracted . | . . . Installed . | . . . Triggered . | . . . Machines | -11 -10 -10 ---------- Run | Scr Mat Min Machines Disabled 3 | . . 3 Max in Single Turn 2 | . . 2 Machines Sabotaged . | . . . Garrisons Compromised . | . . . Overloaded Fab Kills . | . . . Fab Network Shutdowns . | . . . Hacking | -11 -10 -10 --------- Run | Scr Mat Min Machines Accessed 7 | . 6 1 Terminals 5 | . 5 . Fabricators . | . . . Repair Stations . | . . . Recycling Units 1 | . 1 . Scanalyzers . | . . . Garrison Access . | . . . Total Hacks 25 | . 24 1 Successful 14 | . 13 1 Failed 10 | . 10 . Catastrophic 2 | . 2 . Database Lockouts 1 | . 1 . Manual 17 | . 17 . Terminals 23 | . 23 . Fabricators . | . . . Repair Stations . | . . . Recycling Units 1 | . 1 . Scanalyzers . | . . . Garrison Access . | . . . Terminal Hacks 9 | . 8 1 Robot Schematic 1 | . 1 . Robot Analysis 1 | . 1 . Prototype ID Bank 1 | . 1 . Open Door 1 | . . 1 Terminal Index 1 | . 1 . Locate Traps 1 | . 1 . Recall Investigation 1 | . 1 . Hauler Manifests 1 | . 1 . Registered Components 1 | . 1 . Fabricator Hacks . | . . . Repair Station Hacks . | . . . Recycling Unit Hacks 1 | . 1 . Retrieve Components 1 | . 1 . Scanalyzer . | . . . Garrison Access Hacks . | . . . Unauthorized Hacks 9 | . 9 . Terminals 4 | . 4 . Track 1 | . 1 . Botnet 3 | . 3 . Fabricators . | . . . Repair Stations . | . . . Recycling Units . | . . . Scanalyzers . | . . . Garrison Access . | . . . Data Cores Recovered . | . . . Used . | . . . Hacking Detections 5 | . 5 . Full Trace Events 2 | . 2 . Feedback Events . | . . . Feedback Blocked . | . . . Robot Schematics Acquired 1 | . 1 . Robots Built . | . . . Matter . | . . . Time . | . . . Total Robot Build Rating . | . . . Part Schematics Acquired . | . . . Parts Built . | . . . Matter . | . . . Time . | . . . Total Part Build Rating . | . . . Parts Repaired . | . . . Time . | . . . Parts Recycled . | . . . Recycled Matter . | . . . Retrieved Matter . | . . . Retrieved Components 9 | . 9 . Parts Scanalyzed . | . . . Part Schematics Acquired . | . . . Parts Damaged . | . . . Bothacking | -11 -10 -10 ------------ Run | Scr Mat Min Used RIF Installer . | . . . Robots Hacked . | . . . Non-combat . | . . . Combat . | . . . Robot Hacks Applied . | . . . Relay Couplers Released . | . . . Robots Rewired . | . . . Allies Hacked . | . . . Hacks Repelled . | . . . Allies | -11 -10 -10 -------- Run | Scr Mat Min Total Allies . | . . . Largest Group . | . . . Highest-Rated Group . | . . . Highest-Rated Ally . | . . . Total Orders . | . . . Ally Attacks . | . . . Total Damage . | . . . Kills . | . . . Allies Corrupted . | . . . Allies Melted . | . . . Intel | -11 -10 -10 ------- Run | Scr Mat Min Robot Analysis Total 1 | . 1 . Derelict Logs Recovered 2 | . . 2 Drone Launches . | . . . Drone Recoveries . | . . . Exploration | -11 -10 -10 ------------- Run | Scr Mat Min Turns Passed 1486 | 59 966 461 Spaces Moved 861 | 36 580 245 Core 6 | 6 . . Treads . | . . . Legs 855 | 30 580 245 Wheels . | . . . Hover . | . . . Flight . | . . . Fastest Speed 50 | 50 120 120 Average Speed 139 | 108 139 144 Slowest Speed 180 | 120 180 150 Overloaded Moves . | . . . Propulsion Burnouts . | . . . Robots Hopped . | . . . Cave-ins Triggered . | . . . Exploration Rate (%) 51 | 4 91 59 Regions Visited 2 Branch Regions 1 Pre-discovered Areas . | . . . Known Exits Taken . | . . . Unknown Exits Taken 2 | 1 1 . Scrap Searched . | . . . Spaces Dug 8 | . 8 . Terrain Destroyed 107 | . 14 93 Melee . | . . . Projectile . | . . . AOE 107 | . 14 93 Actions | -11 -10 -10 --------- Run | Scr Mat Min Total 1023 | 45 657 321 Wait 45 | . 20 25 Move 859 | 35 579 245 Hop . | . . . Pick Up 9 | . 3 6 Fast Attach 13 | 6 5 2 Attach 3 | . 1 2 Detach 4 | . 1 3 Swap 15 | . 5 10 Drop 8 | . 1 7 Fire 67 | 4 42 21 Melee . | . . . Ram . | . . . Kick . | . . . Crush . | . . . Escape Stasis . | . . . Rewire . | . . . Trap . | . . . Miscellaneous . | . . . Route ------- -11/Scrapyard -10/Materials (discovered 5 exits: [*Mat x3] / *Min x2) -10/Mines (discovered 1 exit: [*Mat]) History --------- Turn | Location | Event 5 | -11/Scrapyard | Discovered new exit (range 16) 60 | -11/Scrapyard | Entered Materials 101 | -10/Materials | Discovered new exit (range 16) 315 | -10/Materials | Build established: Mutant 317 | -10/Materials | Discovered new exit (range 7) 382 | -10/Materials | Lost 3 parts (1u2w) 429 | -10/Materials | Discovered new exit (range 14) 534 | -10/Materials | Discovered new exit (range 5) 544 | -10/Materials | Central database locked down 696 | -10/Materials | Discovered new exit (range 9) 1026 | -10/Materials | Entered Mines 1027 | -10/Mines | Assembled infested the area 1032 | -10/Mines | Assisted by a Guerilla fighting off Assembled 1033 | -10/Mines | Received a Rocket Launcher from a helpful Derelict 1035 | -10/Mines | Learned 4 Materials zone layouts 1093 | -10/Mines | Learned 2 Materials zone layouts 1186 | -10/Mines | Discovered new exit (range 5) 1228 | -10/Mines | Core integrity fell below 50% 1267 | -10/Mines | Met a Derelict who couldn't figure out how to use a Trap Extractor 1486 | -10/Mines | Core integrity fell below 20% 1487 | -10/Mines | Destroyed by D-53 Grenadier with Mini Grenade Launcher Last Messages --------------- 01317_ Machine disabled. 01317_ A bubble of electromagnetic force engulfs the area. 01320_ Acquired Insulated Plating. 01329_ Acquired Electrolaser. 01333_ Dropped Lgt. Ion Engine. 01334_ Acquired Imp. Trap Extractor. 01335_ Dropped Ion Engine. 01337_ Acquired Hardlight Generator. 01341_ Acquired Thermal Generator. 01378_ Acquired 19 matter. 01384_ R-06 Scavenger destroyed. 01387_ Acquired 82 matter. 01426_ Dropped Aluminum Leg. 01430_ Acquired Aluminum Leg. 01444_ K-01 Serf collects debris. 01477_ D-53 Grenadier destroyed. 01477_ K-01 Serf collects debris. 01480_ U-05 Engineer lays Concrete. 01483_ Electrolaser destroyed. 01484_ U-05 Engineer lays Concrete. Map ----- +----------------------------------------------------+ | ?????????########### ######???????# #????????# | | ????????????????#### #????????????# #???###### | | ????????????????# #????????????# #???# | | ????????????????# #########????????# #???# [ | | ????????????##### #??## ##???????# #???## *=# | | ???????????## #?## ##??????# #???## = | | ??????####?# ###### #??????# #???# # | | ??????# ### ##??# #??????# #???### ## | | ??????# =^ # ##?# #???????# #?????# | | ??????# *[[ ### ######### #?????#### | | ??????# [^^ ## #????????? | | ??????# * # ## #????????? | | ??????# ### ## #########???????## | | ??????####?## ### ##??????????????## | | ????????????####?# ##???????????????# | | ?????????????????## ##???????????????# | | ??????????????????### ##??????????????## | | ????????????????????## ##??????????????## | | ?????????????????????## #????????????#### | | ????????????????????## #????????????# | | ???????????????????## ##?????######## ## | | ??????????????????## #??????# #? | | ?????????????????## u#??????# ## ### #? | | ?????????????????# ##????????????# ## | | ??????????????#### #????????# ### # | | ??????????# d@ # #???????# | | ??????????# ## #??????#### | | ??????????# ###### # #????????# | | ??????????????????# ##? ???????# | | ??????????????????## ###?? ?????## | | ???????????????????######????? ### ??????# | | ??????????????????????????????? ##?????????# | | ???????????????????????????????????????????## | | ????????????????????????????????????????????## | | ?????????????????????????????????????????????## | | ??????????????????????????????????????????????# | | ??????????????????????????????????????????????? | | ??????????????????????????????????????????????? | | ??????????????????????????????????????????????? | | ??????????????????????????????????????????????? | | ??????????????????????????????????????????????? | | ??????????????????????????????????????????????? | | ??????????????????????????????????????????????? | | ??????????????????????????????????????????????? | | ??????????????????????????????????????????????? | | ??????????????????????????????????????????????? | | ??????????????????????????????????????????????? | | ??????????????????????????????????????????????? | | ??????????????????????????????????????????????? | | ??????????????????????????????????????????????? | +----------------------------------------------------+ Best States ------------- Heat Dissipation 25 Energy Generation 14 Energy Capacity 250 Matter Stores 300 Matter Capacity 300 Sight Range 16 Terrain Scan Density 10 Base Temperature (-) 100 Heat Shielding 75 Evasion (%) 40 Item Schematics ----------------- None Robot Schematics ------------------ O-16 Technician | -10/Materials | Hacked Fabricated ------------ Nothing Alien Tech Used ----------------- None Achievements -------------- None Challenges ------------ None Game ------ Seed MachineReinforcedExoskeleton Manual? 0 Play Time 00:14:57 Cumulative 844.2 hours Start 2019.12.28 @ 11:39:02 End 2019.12.28 @ 11:50:25 Sessions 1 Manual Loads 0 Difficulty Rogue Special Mode None Game No. 309 Rogue 309 Adventurer 0 Explorer 0 Win Type - Total 12 Types 11/0/1/0/0/0/0 Lore% 77 Gallery% 87 Achievement% 69 Wizard Run 0 Options --------- ASCII 0 Keyboard 1 Movement Numpad Keybinds 0 Fullscreen 2 Font 18/SmallcapsGlow Map View 112x50 Tactical HUD 1 Map Filters NONE Filters NONE Steam 1 RUN: af91353c-467d-46e2-8e4c-aee99eff3da6